bitfinex-derivatives/quotes_SOLF0:USTF0_20251210
["timestamp","ask_amount","ask_price","bid_price","bid_amount"]
[1765395328836,2.55867,138.61,138.53,101.0507]
[1765395329133,2.55867,138.61,138.56,6.54157934]
[1765395329336,2.55867,138.61,138.57,101.023]
[1765395329531,100.9101,138.73,138.6,101.0018]
[1765395329731,86.48,138.76,138.63,100.978]
[1765395329940,100.8647,138.79,138.67,100.9502]
[1765395330237,6.53535487,138.74,138.72,0.04689442]
[1765395330541,0.04572434,138.74,138.72,0.04689442]
[1765395331138,100.8296,138.84,138.72,102.40079442]
[1765395331344,100.7999,138.88,138.76,100.8828]
[1765395331546,61.04,138.89,138.8,100.8555]
[1765395331742,100.7562,138.94,138.81,100.8471]
[1765395331948,100.699,139.02,138.88,100.7933]
[1765395332137,402.696,139.06,138.94,100.7492]
[1765395332138,100.6708,139.06,138.94,100.7492]
[1765395332337,0.0499416,138.96,138.94,100.79526246]
[1765395332638,100.6785,139.05,138.93,100.7586]
[1765395332835,161.7039,139.07,138.95,100.746]
[1765395333050,61.04,139.07,138.96,100.7358]
[1765395333431,0.04781872,139.03,139.0,0.05165687]
[1765395334244,0.04781872,139.03,139.0,100.75955687]
[1765395334442,0.04781872,139.03,139.0,0.05165687]
[1765395335245,100.707,139.01,138.89,100.7869]
[1765395335451,100.707,139.01,138.86,100.8109]
[1765395335452,100.7217,138.99,138.86,100.8109]
[1765395335748,100.7525,138.95,138.81,161.846]
[1765395335939,100.766,138.93,138.8,100.8534]
[1765395336140,161.7585,138.94,138.82,100.8382]
[1765395336348,0.04894163,138.88,138.85,0.04880976]
[1765395336653,0.04699723,138.88,138.85,0.05260281]
[1765395337044,61.0,138.94,138.85,0.05260281]
[1765395337247,61.0,138.94,138.85,100.816]
[1765395337744,61.0,138.94,138.82,100.8386]
[1765395337948,0.05160513,138.89,138.87,0.05148504]
[1765395338243,0.0521806,138.89,138.75,161.889]
[1765395338440,100.7888,138.9,138.75,61.0]
[1765395338747,132.87614896,138.93,138.78,100.8679]
[1765395339454,100.7506,138.95,138.78,100.8679]
[1765395339455,161.7182,138.97,138.84,0.04998381]
[1765395339649,161.7182,138.97,138.82,100.836]
[1765395340147,100.7542,138.95,138.81,100.8458]
[1765395340452,100.7542,138.95,138.78,32.10984896]
[1765395340453,0.05336742,138.89,138.87,0.05106019]
[1765395340651,0.05382045,138.89,138.87,0.05106019]
[1765395340949,0.05382045,138.89,138.75,193.99824896]
[1765395341139,161.7654,138.9,138.77,100.8746]
[1765395341140,60.98,138.9,138.77,100.8746]
[1765395341649,60.98,138.9,138.77,107.3595]
[1765395341848,60.98,138.9,138.83,100.8299]
[1765395342152,60.98,138.96,138.85,0.04662125]
[1765395342337,60.98,138.96,138.85,100.8152]
[1765395342542,60.98,138.96,138.86,100.8093]
[1765395342958,60.98,138.96,138.85,107.2964]
[1765395343252,60.98,138.96,138.89,0.04652283]
[1765395343253,0.00369075,138.92,138.89,0.04652283]
[1765395345457,100.7378,138.97,138.89,0.04652283]
[1765395345653,100.7439,138.96,138.86,62.0]
[1765395345847,6.475,138.99,138.88,100.7949]
[1765395346047,60.96,139.03,138.91,100.7735]
[1765395346249,60.96,139.03,138.92,100.7648]
[1765395346446,0.05048929,138.99,138.96,0.0496806]
[1765395347148,0.05048929,138.99,138.87,107.2821]
[1765395347353,6.4735,139.02,138.88,100.7941]
[1765395347752,100.7019,139.02,138.88,100.7965]
[1765395348054,60.96,139.03,138.89,100.7864]
[1765395348255,0.05238628,138.97,138.95,0.05280191]
[1765395348450,0.04608747,138.97,138.95,0.05280191]
[1765395349054,60.96,139.03,138.96,100.7369]
[1765395349353,60.94,139.07,138.96,100.7369]
[1765395349755,60.94,139.07,138.95,100.7428]
[1765395350155,0.04623632,139.02,139.0,0.0523708]
[1765395350352,0.05333969,139.02,139.0,0.0523708]
[1765395352251,1.49333969,139.02,138.91,107.252]
[1765395352450,100.6992,139.02,138.89,100.7878]
[1765395352750,100.6902,139.03,138.9,100.7812]
[1765395352946,100.6902,139.03,138.89,100.7878]
[1765395353147,100.6902,139.03,138.9,100.7835]
[1765395353354,0.04616008,138.98,138.95,0.05037848]
[1765395354754,60.94,139.0,138.95,0.05037848]
[1765395355064,161.6226,139.04,138.9,100.7796]
[1765395355359,100.6928,139.03,138.87,100.8052]
[1765395355565,100.7535,138.95,138.81,100.8466]
[1765395355857,60.94,138.94,138.87,107.285]
[1765395356051,60.94,138.94,138.87,100.805]
[1765395356246,60.94,138.94,138.83,100.8334]
[1765395356460,6.4795,138.89,138.78,6.4841]
[1765395356658,100.87732803,138.85,138.72,100.9122]
[1765395356857,107.3578,138.78,138.65,107.4541]
[1765395357057,193.90854896,138.77,138.65,6.4905]
[1765395357265,114.77984896,138.77,138.65,107.4518]
[1765395357453,114.77984896,138.77,138.62,100.987]
[1765395357454,100.8961,138.75,138.62,100.987]
[1765395357656,100.8961,138.75,138.62,100.9831]
[1765395357863,0.04752276,138.7,138.67,0.04552232]
[1765395358051,193.88654896,138.8,138.67,0.04552232]
[1765395358052,60.92,138.8,138.69,100.9355]
[1765395358358,60.92,138.8,138.72,100.9139]
[1765395358662,60.92,138.8,138.74,107.3809]
[1765395358850,100.812,138.87,138.75,100.8924]
[1765395359054,0.05037572,138.82,138.8,0.0495653]
[1765395359254,0.04923163,138.82,138.8,0.0495653]
[1765395360562,1.48923163,138.82,138.68,100.9409]
[1765395360763,107.348,138.79,138.67,100.9489]
[1765395360959,119.438131,138.82,138.69,100.9335]
[1765395361262,100.857,138.8,138.67,100.9489]
[1765395361460,0.04999583,138.75,138.72,0.05138921]
[1765395361662,0.04999583,138.75,138.72,100.96588921]
[1765395361860,0.04999583,138.75,138.73,100.907]
[1765395362060,100.816,138.86,138.73,100.907]
[1765395362250,125.908931,138.83,138.71,6.4878]
[1765395362450,25.074231,138.83,138.71,100.9162]
[1765395362651,18.591931,138.83,138.72,100.9131]
[1765395362859,100.816,138.86,138.72,100.9145]
[1765395362860,100.8339,138.84,138.72,100.9145]
[1765395363056,100.8354,138.83,138.71,100.9201]
[1765395363256,0.04545527,138.79,138.77,0.05246215]
[1765395364963,1.48545527,138.79,138.67,100.9509]
[1765395365265,6.4837,138.8,138.69,6.4883]
[1765395365459,119.412431,138.85,138.72,100.9113]
[1765395365659,25.073431,138.85,138.73,100.9044]
[1765395365860,0.04601025,138.8,138.78,0.05379987]
[1765395366165,107.3178,138.83,138.71,6.4874]
[1765395366364,18.591931,138.85,138.73,100.9056]
[1765395366566,119.413131,138.85,138.73,100.9056]
[1765395366759,107.3345,138.81,138.7,6.4881]
[1765395366964,100.8639,138.79,138.67,100.947]
[1765395367164,100.8639,138.79,138.72,0.04772056]
[1765395367165,0.05454846,138.74,138.72,0.04772056]
[1765395367357,0.04679061,138.74,138.72,0.04772056]
[1765395368166,0.04679061,138.74,138.63,161.9565]
[1765395368359,107.395,138.73,138.61,107.4838]
[1765395368558,100.9077,138.73,138.61,107.4862]
[1765395368767,100.9151,138.72,138.59,101.0076]
[1765395369063,18.591931,138.73,138.64,0.05234427]
[1765395369064,0.05244042,138.67,138.64,0.05234427]
[1765395369263,0.05367144,138.67,138.64,0.05413548]
[1765395369454,0.05367144,138.67,138.52,6.4963]
[1765395369455,6.4919,138.63,138.52,6.4963]
[1765395369660,100.9811,138.63,138.5,101.0739]
[1765395369959,100.9811,138.63,138.46,60.98]
[1765395369960,101.0039,138.6,138.45,101.1083]
[1765395370164,18.591931,138.49,138.31,3.33693481]
[1765395370357,389.3353,138.65,138.26,97.8976]
[1765395370358,101.1508,138.4,138.26,97.8976]
[1765395370557,180.740331,138.4,138.25,101.2531]
[1765395370761,0.05331012,138.34,138.2,101.2915]
[1765395370961,101.2053,138.33,138.17,101.3137]
[1765395371164,18.591931,138.3,138.15,101.325]
[1765395371372,101.2481,138.27,138.14,18.591931]
[1765395371559,162.2117,138.32,138.18,101.3058]
[1765395371864,0.04631384,138.26,138.24,0.04793294]
[1765395372061,21.75,138.3,138.24,0.04793294]
[1765395372260,19.3170734,138.3,138.24,0.04793294]
[1765395372474,61.0,138.32,138.24,0.04793294]
[1765395372673,71.75737414,139.09,138.24,0.04793294]
[1765395372674,101.1708,138.37,138.24,0.04793294]
[1765395372876,61.02,138.4,138.28,101.2316]
[1765395373164,0.05246783,138.35,138.33,0.05289454]
[1765395373368,101.1006,138.47,138.33,101.194]
[1765395373570,101.0709,138.51,138.38,101.1594]
[1765395373758,61.04,138.53,138.42,101.1286]
[1765395373960,61.04,138.53,138.44,101.114]
[1765395374373,242.05715648,138.63,138.51,101.0643]
[1765395374674,101.0129,138.59,138.45,101.1094]
[1765395374877,100.9978,138.61,138.48,101.0849]
[1765395375169,100.9978,138.61,138.41,303.4066]
[1765395375170,101.0244,138.57,138.44,101.1157]
[1765395375357,0.05193336,138.52,138.49,0.05036799]
[1765395375563,61.06,138.51,138.39,101.151]
[1765395375767,61.06,138.51,138.38,101.1598]
[1765395375965,101.0795,138.5,138.37,101.1664]
[1765395376173,61.06,138.51,138.4,101.1447]
[1765395376671,54.11134425,138.51,138.44,0.04804438]
[1765395377780,0.05541435,138.49,138.44,0.04804438]
[1765395378070,101.0931,138.48,138.35,101.1811]
[1765395378272,101.1105,138.46,138.33,101.1929]
[1765395378470,101.1105,138.46,138.32,101.2035]
[1765395378471,101.1163,138.45,138.32,101.2035]
[1765395378772,18.591931,138.47,138.35,101.1799]
[1765395378967,101.1082,138.46,138.32,101.2035]
[1765395379171,18.591931,138.39,138.2,18.591931]
[1765395379370,101.2334,138.29,138.16,202.6442]
[1765395379563,61.08,138.28,138.18,101.3059]
[1765395379776,61.08,138.35,138.23,101.2677]
[1765395379966,61.08,138.35,138.18,101.3047]
[1765395380168,0.04933821,138.28,138.25,0.05382653]
[1765395380362,61.1,138.27,138.12,18.591931]
[1765395380663,162.3458,138.27,138.1,101.3639]
[1765395380869,101.2732,138.23,138.07,119.980631]
[1765395381175,101.2532,138.26,138.1,101.3629]
[1765395381377,0.04638909,138.19,138.17,0.05186801]
[1765395381572,0.05380663,138.19,138.17,0.05518536]
[1765395381775,101.3191,138.17,138.01,120.020731]
[1765395381985,162.4071,138.19,138.04,18.591931]
[1765395382272,61.1,138.19,138.05,101.3997]
[1765395382576,61.12,138.24,138.08,18.591931]
[1765395382784,18.591931,138.31,138.15,0.05260555]
[1765395382971,101.2095,138.32,138.13,101.342]
[1765395382972,101.1808,138.36,138.2,119.881931]
[1765395383172,101.1808,138.36,138.19,101.296]
[1765395383173,61.14,138.38,138.25,101.2528]
[1765395383478,61.14,138.38,138.24,101.2604]
[1765395383684,61.14,138.38,138.25,101.2545]
[1765395383981,0.0490585,138.33,138.3,0.05200708]
[1765395384372,61.14,138.38,138.3,101.26930708]
[1765395384573,61.14,138.38,138.3,0.05200708]
[1765395384772,61.14,138.38,138.08,101.3763]
[1765395384773,101.2692,138.24,138.08,101.3763]
[1765395384972,101.2932,138.21,138.06,101.3914]
[1765395385167,107.8217,138.18,138.03,126.527831]
[1765395385368,101.2932,138.21,138.07,18.591931]
[1765395385569,101.3144,138.18,138.04,101.4083]
[1765395385770,0.05148516,138.12,138.1,0.05122889]
[1765395385974,0.05212467,138.12,138.1,0.05122889]
[1765395386277,0.00212467,138.12,138.1,0.05122889]
[1765395386580,162.4352,138.23,138.1,20.08315989]
[1765395386783,101.2828,138.22,138.1,18.591931]
[1765395386978,61.16,138.23,138.11,101.3595]
[1765395387182,202.471,138.29,138.16,101.3204]
[1765395387479,0.04961327,138.24,138.21,0.0462294]
[1765395387781,0.05116932,138.24,138.21,0.04653175]
[1765395387985,101.1706,138.37,138.24,101.2598]
[1765395388280,101.1683,138.38,138.27,18.591931]
[1765395388485,101.1813,138.36,138.27,18.591931]
[1765395388870,0.05071442,138.33,138.3,0.04908465]
[1765395390089,101.25341442,138.33,138.3,0.04908465]
[1765395390377,101.2625,138.25,138.18,18.591931]
[1765395390582,107.778,138.24,138.15,18.591931]
[1765395390778,101.2545,138.26,138.15,18.591931]
[1765395391090,101.2753,138.23,138.15,18.591931]
[1765395391276,162.4499,138.27,138.15,119.922231]
[1765395391472,101.2243,138.3,138.2,0.04795817]
[1765395391673,101.24,138.28,138.19,18.591931]
[1765395391981,101.2482,138.27,138.16,18.591931]
[1765395392177,61.2,138.32,138.16,18.591931]
[1765395392380,101.3083,138.19,138.09,18.591931]
[1765395392577,0.05276411,138.15,138.13,0.0547439]
[1765395393276,162.4885,138.21,138.13,1.4947439]
[1765395393479,101.2676,138.24,138.13,18.6466749]
[1765395393670,101.2786,138.23,138.13,18.591931]
[1765395393878,101.2676,138.24,138.13,18.591931]
[1765395394191,0.05234543,138.2,138.17,0.05364772]
[1765395394491,0.04680066,138.2,138.17,18.63904118]
[1765395394680,0.04680066,138.2,138.17,0.04711018]
[1765395395279,101.31,138.18,138.02,102.68321623]
[1765395395474,101.3223,138.17,138.05,119.995131]
[1765395395682,101.3046,138.19,138.07,101.3865]
[1765395395882,101.3097,138.18,138.06,101.3937]
[1765395396075,101.3205,138.17,138.05,119.995131]
[1765395396280,0.00461164,138.12,138.1,0.05329115]
[1765395396490,162.4971,138.2,138.09,18.591931]
[1765395396882,101.306,138.19,138.09,18.591931]
[1765395397276,303.9516,138.17,138.02,1.26011623]
[1765395397476,101.3693,138.1,137.97,18.591931]
[1765395397778,162.5832,138.11,137.98,101.4522]
[1765395397981,61.22,138.11,138.01,18.591931]
[1765395398180,61.22,138.11,138.0,120.029931]
[1765395398385,0.05448498,138.07,138.04,18.64530698]
[1765395398582,0.05448498,138.07,138.04,0.05337598]
[1765395399292,101.3396,138.14,138.04,18.64530698]
[1765395399593,101.3283,138.16,138.04,18.591931]
[1765395399788,101.3283,138.16,138.04,120.002731]
[1765395399987,101.3283,138.16,138.04,18.591931]
[1765395400186,0.04722591,138.11,138.09,0.04600219]
[1765395400388,0.0466029,138.11,138.09,0.05495872]
[1765395400889,101.4120029,138.11,137.98,120.047431]
[1765395401195,107.8504,138.15,138.02,107.946]
[1765395401391,101.2873,138.21,138.08,101.379]
[1765395401693,101.2873,138.21,138.1,18.591931]
[1765395401694,107.7989,138.21,138.1,18.591931]
[1765395401893,0.05247915,138.17,138.14,0.04757009]
[1765395404788,101.37187915,138.17,138.14,0.04757009]
[1765395404994,0.05247915,138.17,138.14,0.04757009]
[1765395405294,101.3236,138.16,138.04,162.6484]
[1765395405485,101.36877915,138.17,138.02,18.591931]
[1765395405486,101.339,138.14,138.02,18.591931]
[1765395405691,101.339,138.14,138.02,120.017931]
[1765395405890,101.3356,138.15,138.02,120.017931]
[1765395406086,101.3332,138.15,138.01,101.4297]
[1765395406294,0.04614026,138.09,138.07,0.0499072]
[1765395406501,0.05089765,138.09,138.07,0.04719687]
[1765395406697,101.2972,138.2,138.08,102.822]
[1765395406892,162.5424,138.22,138.07,101.43149687]
[1765395406893,162.5424,138.22,138.1,101.3669]
[1765395407098,107.7614,138.26,138.15,6.5141]
[1765395407287,101.2873,138.21,138.08,18.591931]
[1765395407490,101.2536,138.26,138.1,101.3669]
[1765395407686,101.2657,138.24,138.12,18.591931]
[1765395407994,101.2876,138.21,138.08,119.971331]
[1765395408194,101.2827,138.22,138.07,62.0]
[1765395408195,101.2947,138.2,138.07,62.0]
[1765395408401,101.3174,138.17,138.04,101.4085]
[1765395408590,0.05424516,138.12,138.09,0.04758153]
[1765395408790,0.0520773,138.12,138.09,0.05161772]
[1765395409300,102.8007,138.11,137.98,101.4553]
[1765395409500,101.3682,138.1,137.97,62.52045855]
[1765395409700,6.5201,138.03,137.97,1.26045855]
[1765395409888,6.5201,138.03,137.95,3.38211237]
[1765395409889,101.4208,138.03,137.95,3.38211237]
[1765395410084,101.4131,138.04,137.95,3.38211237]
[1765395410297,0.05428078,138.01,137.98,0.049939]
[1765395411004,61.26,138.06,137.98,0.049939]
[1765395411296,101.3735,138.1,137.98,101.504639]
[1765395411500,61.26,138.12,138.0,101.4388]
[1765395411711,101.3679,138.1,137.98,101.4547]
[1765395411899,0.04862415,138.05,138.03,0.05421135]
[1765395412095,0.04720757,138.05,138.03,0.05318691]
[1765395412691,61.26,138.12,138.03,0.05318691]
[1765395412891,162.6163,138.12,138.0,120.027731]
[1765395413200,61.26,138.12,137.99,101.4447]
[1765395413500,61.26,138.12,138.0,120.028031]
[1765395413692,0.05116345,138.07,138.05,0.04954753]
[1765395413893,0.0509241,138.07,138.05,0.04954753]
[1765395415199,101.3189,138.17,138.05,0.04954753]
[1765395415200,101.3111,138.18,138.05,102.89244753]
[1765395415397,101.3539,138.12,138.0,18.591931]
[1765395415596,101.3461,138.13,138.01,101.4321]
[1765395415788,61.28,138.13,137.95,3.38211237]
[1765395415993,101.3757,138.09,137.96,101.4701]
[1765395416205,0.04897554,138.04,138.01,0.05317545]
[1765395416398,101.4366,138.01,137.95,3.38211237]
[1765395416591,0.05304351,137.99,137.97,0.05125762]
[1765395416813,6.57504351,137.99,137.97,0.05125762]
[1765395417104,101.4572,137.98,137.95,3.38211237]
[1765395417294,6.57474351,137.99,137.95,3.38211237]
[1765395417490,0.05304351,137.99,137.95,3.38211237]
[1765395418100,0.05304351,137.99,137.96,0.051967]
[1765395418495,0.05304351,137.99,137.95,3.38211237]
[1765395418496,101.50224351,137.99,137.95,1.0781493]
[1765395418697,101.50224351,137.99,137.88,1.26130371]
[1765395418698,61.35304351,137.99,137.87,101.5349]
[1765395418899,61.3,137.99,137.87,102.79620371]
[1765395419102,61.3,137.99,137.9,101.5103]
[1765395419297,61.3,137.99,137.91,101.5072]
[1765395419504,0.05364407,137.96,137.94,0.04766538]
[1765395420227,101.52454407,137.96,137.94,0.04766538]
[1765395420508,101.5468,137.86,137.72,105.07304486]
[1765395420697,406.0174,137.92,137.72,3.42854486]
[1765395420698,101.5835,137.81,137.72,3.42854486]
[1765395421106,101.5597,137.84,137.72,3.42854486]
[1765395421312,0.04646702,137.79,137.77,0.04976637]
[1765395421502,61.3,137.85,137.77,0.04976637]
[1765395421895,101.4959,137.93,137.77,101.65846637]
[1765395422108,101.501,137.92,137.79,101.5939]
[1765395422299,61.32,137.93,137.8,101.5865]
[1765395422504,61.32,137.93,137.82,101.5722]
[1765395422808,61.32,137.93,137.82,101.5709]
[1765395423108,162.792,137.99,137.86,101.59181211]
[1765395423301,61.34,137.99,137.88,101.526]
[1765395423507,61.34,137.99,137.86,101.541]
[1765395423508,162.7889,137.99,137.86,101.541]
[1765395423811,101.4714,137.96,137.84,101.5557]
[1765395424013,107.9949,137.96,137.85,6.528]
[1765395424211,107.9949,137.96,137.84,101.5557]
[1765395424212,0.0505998,137.92,137.89,0.05104107]
[1765395425112,61.34,137.99,137.9,62.0]
[1765395425306,101.4708,137.96,137.84,101.5556]
[1765395425610,6.5221,137.98,137.87,108.063]
[1765395425807,101.4282,138.02,137.9,101.5134]
[1765395426007,0.05147856,137.97,137.95,0.05162657]
[1765395426212,0.05170938,137.97,137.95,0.05162657]
[1765395427304,101.4137,138.04,137.95,0.05162657]
[1765395427305,101.3851,138.08,137.96,101.4693]
[1765395427510,101.3851,138.08,137.94,101.4817]
[1765395427710,6.5178,138.08,137.97,6.5226]
[1765395427909,101.3902,138.07,137.94,101.4817]
[1765395428107,101.3902,138.07,137.94,101.4831]
[1765395428308,0.048732,138.01,137.98,0.0461457]
[1765395430201,101.3682,138.1,137.98,0.0461457]
[1765395430408,101.3919,138.07,137.96,6.5226]
[1765395430607,101.3799,138.09,137.97,101.4627]
[1765395430909,6.5168,138.1,137.99,101.4481]
[1765395431110,162.7237,138.11,137.99,101.4481]
[1765395431111,61.36,138.11,138.01,101.4316]
[1765395431306,101.3033,138.19,138.05,101.4028]
[1765395431609,101.3047,138.19,138.07,101.3858]
[1765395431909,101.2912,138.21,138.09,101.3725]
[1765395432116,101.3124,138.18,138.06,163.3957]
[1765395432305,101.2973,138.2,138.11,0.04629783]
[1765395432506,101.3094,138.18,138.14,0.04978641]
[1765395432707,107.8334,138.17,138.14,0.04978641]
[1765395432907,6.5136,138.17,138.14,0.04978641]
[1765395433104,101.2886,138.21,138.14,0.04978641]
[1765395433303,101.3044,138.19,138.14,0.04978641]
[1765395433508,101.29,138.21,138.14,0.04978641]
[1765395433806,61.36,138.22,138.14,0.04978641]
[1765395434001,162.5785,138.28,138.15,101.3273]
[1765395434207,61.34,138.28,138.2,0.05473216]
[1765395434409,101.2536,138.26,138.2,0.05473216]
[1765395434617,101.2664,138.24,138.2,0.05473216]
[1765395434919,162.5802,138.28,138.2,0.05473216]
[1765395434920,101.2435,138.27,138.2,0.05473216]
[1765395435216,162.5802,138.28,138.2,0.05473216]
[1765395435404,101.258,138.25,138.2,0.05473216]
[1765395435600,101.274,138.23,138.2,0.05473216]
[1765395435814,101.274,138.23,138.08,101.3805]
[1765395435815,0.04620636,138.23,138.12,101.3507]
[1765395436014,101.2724,138.23,138.11,101.3548]
[1765395436216,101.3021,138.19,138.1,61.32]
[1765395436417,101.2981,138.2,138.1,61.32]
[1765395436622,6.5132,138.17,138.06,101.3969]
[1765395436820,0.05264683,138.13,138.1,0.05356918]
[1765395437109,0.05079036,138.13,138.1,0.04665413]
[1765395437510,101.2725,138.23,138.11,101.3583]
[1765395437712,101.304,138.19,138.07,101.3865]
[1765395438214,169.1201,138.21,138.09,107.8879]
[1765395438616,169.1193,138.21,138.14,0.04956113]
[1765395439010,101.3094,138.18,138.14,0.04956113]
[1765395439218,61.32,138.21,138.14,0.04956113]
[1765395439812,61.32,138.21,138.14,101.38446113]
[1765395440120,101.2711,138.24,138.14,0.04956113]
[1765395440322,101.2537,138.26,138.18,0.05398817]
[1765395440614,61.3,138.27,138.18,6.56658817]
[1765395440821,101.226,138.3,138.21,0.05144241]
[1765395441020,6.5093,138.26,138.24,0.05388067]
[1765395441328,61.3,138.3,138.24,0.05180765]
[1765395441619,101.2153,138.31,138.24,0.05180765]
[1765395441816,101.2113,138.32,138.26,0.04760733]
[1765395442011,101.1999,138.33,138.26,0.04760733]
[1765395442316,101.1936,138.34,138.26,0.04760733]
[1765395442317,6.505,138.35,138.26,6.55650733]
[1765395442519,101.1937,138.34,138.29,0.04743415]
[1765395442713,101.1868,138.35,138.29,0.04743415]
[1765395442714,101.2066,138.32,138.29,0.04743415]
[1765395442921,101.2143,138.31,138.29,0.04743415]
[1765395443113,107.7213,138.31,138.29,0.04743415]
[1765395443315,107.7216,138.31,138.29,0.04743415]
[1765395443516,6.507,138.31,138.29,0.04743415]
[1765395443711,101.1921,138.34,138.29,0.04743415]
[1765395443914,101.2076,138.32,138.29,0.04743415]
[1765395444216,6.5069,138.31,138.29,0.04743415]
[1765395444413,61.28,138.3,138.12,61.26]
[1765395444617,101.2604,138.25,138.13,101.3456]
[1765395444816,6.5107,138.23,138.14,6.5145]
[1765395445014,101.2562,138.26,138.15,101.3304]
[1765395445220,101.2584,138.25,138.14,101.3344]
[1765395445416,0.0484046,138.21,138.18,0.04835552]
[1765395445623,101.2945,138.2,138.18,0.04835552]
[1765395445827,0.0484046,138.21,138.18,0.04835552]
[1765395446423,0.0484046,138.21,138.18,101.35495552]
[1765395446725,101.2434,138.27,138.18,0.04835552]
[1765395446926,6.5085,138.27,138.17,6.5127]
[1765395447125,6.5085,138.27,138.17,101.3157]
[1765395447527,101.2583,138.25,138.21,0.04572752]
[1765395448028,6.5102,138.24,138.21,0.04572752]
[1765395448727,61.28,138.28,138.21,0.04572752]
[1765395449124,6.5062,138.32,138.24,6.5095]
[1765395449325,162.4648,138.33,138.27,0.04598334]
[1765395449531,61.26,138.33,138.29,0.04620553]
[1765395449728,61.26,138.33,138.3,0.0543085]
[1765395449926,101.2363,138.28,138.17,396.3132]
[1765395450122,101.2152,138.31,138.18,101.3051]
[1765395450320,101.2065,138.32,138.2,101.2941]
[1765395450517,101.2178,138.31,138.19,101.3015]
[1765395450731,101.2214,138.3,138.19,62.0]
[1765395450927,0.05235693,138.26,138.23,0.04785649]
[1765395451318,6.5063,138.32,138.24,6.5098]
[1765395451522,101.2216,138.3,138.19,101.2971]
[1765395451722,101.1819,138.36,138.24,101.2605]
[1765395451922,101.1819,138.36,138.2,101.2924]
[1765395451923,162.4593,138.33,138.21,101.2862]
[1765395452423,101.2066,138.32,138.26,0.0496304]
[1765395452619,101.2155,138.31,138.26,0.0496304]
[1765395452922,6.5083,138.28,138.26,0.0496304]
[1765395453123,61.26,138.33,138.26,101.2964304]
[1765395453330,61.26,138.39,138.29,101.2282]
[1765395453523,61.26,138.39,138.33,0.05582241]
[1765395454027,101.1851,138.35,138.33,0.05582241]
[1765395454228,32.81997553,138.37,138.27,101.2405]
[1765395454532,162.4194,138.39,138.28,101.2355]
[1765395454718,101.163,138.38,138.29,6.5072]
[1765395454924,101.1702,138.37,138.25,101.2544]
[1765395455125,0.0504162,138.32,138.3,0.05150403]
[1765395455324,0.0535868,138.32,138.3,0.05150403]
[1765395456722,61.2935868,138.32,138.3,0.05150403]
[1765395457032,67.7999868,138.32,138.3,0.05150403]
[1765395457331,0.0535868,138.32,138.3,0.05150403]
[1765395458635,61.2935868,138.32,138.24,6.5095]
[1765395458932,61.24,138.32,138.24,6.5095]
[1765395459233,6.5068,138.31,138.24,6.5095]
[1765395459426,61.24,138.32,138.21,101.2841]
[1765395459631,0.05566887,138.28,138.25,0.05120233]
[1765395459828,61.24,138.32,138.25,101.30240233]
[1765395460025,162.3983,138.39,138.29,6.5073]
[1765395460238,61.24,138.39,138.28,101.2305]
[1765395460731,101.1144,138.45,138.32,101.2061]
[1765395460927,0.04790149,138.39,138.37,0.04691555]
[1765395461233,0.04618819,138.39,138.37,0.04691555]
[1765395461734,101.1629,138.38,138.26,101.2463]
[1765395461949,101.1863,138.35,138.23,61.2]
[1765395462149,101.1863,138.35,138.22,101.276]
[1765395462150,6.5073,138.3,138.22,6.5106]
[1765395462443,101.224,138.3,138.17,101.3136]
[1765395462633,101.224,138.3,138.19,101.301]
[1765395462837,0.05487694,138.25,138.22,0.04943778]
[1765395463732,101.31327694,138.25,138.22,0.04943778]
[1765395463929,101.2724,138.23,138.11,101.3572]
[1765395464123,6.5112,138.22,138.14,6.5143]
[1765395464329,101.2755,138.23,138.11,101.3592]
[1765395464631,6.5111,138.22,138.13,101.3441]